{"text_format":"1","workbook":"xlsx","n_sheets":2,"sheets":["data","النتائج"],"not_rendered":{"charts":0,"images":0,"macros":1,"external_links":0,"defined_names":2,"comments":0,"pivot_tables":0},"unopened":[],"bounds":{"document_bytes":16777216,"sheet_cells":100000,"rows_first":2000,"rows_last":500,"rows_between":2000,"halvings":0,"cell_chars":16384,"cell_head_chars":4096},"cells_cut":0,"cells_raw":0,"read":"whole","date_system":"1900"}

{"sheet":"data","index":0,"n_rows":87,"n_cols":33,"rows_kept":87,"cut":false,"hidden":false,"merged":[[5,30,6,30],[5,31,6,31],[5,32,6,32],[5,27,6,27],[5,28,6,28],[5,29,6,29],[5,22,6,22],[5,23,6,23],[5,24,6,24],[5,25,6,25],[5,26,6,26],[5,17,6,17],[5,18,6,18],[5,19,6,19],[5,20,6,20],[5,21,6,21],[5,12,6,12],[5,13,6,13],[5,14,6,14],[5,15,6,15],[5,16,6,16],[5,11,6,11],[5,0,6,0],[5,1,6,1],[5,2,6,2],[5,3,6,3],[5,4,6,4],[5,5,6,5],[5,6,6,6],[5,7,6,7],[5,8,6,8],[5,9,6,9],[5,10,6,10]]}
["ترويسة","ترويسة","ترويسة",null,null,null,null,null,null,null,null,null,null,null,null,null,null,null,null,null,null,null,null,null,null,null,null,null,null,null,"ترويسة","ترويسة","ترويسة"]
["ترويسة","ترويسة","ترويسة",null,null,null,null,null,null,null,null,null,null,null,null,null,null,null,null,null,null,null,null,null,null,null,null,null,null,null,"ترويسة","ترويسة","ترويسة"]
["ترويسة","ترويسة","ترويسة",null,null,null,null,null,null,null,null,null,null,null,null,null,null,null,null,null,null,null,null,null,null,null,null,null,null,null,"ترويسة","ترويسة","ترويسة"]
["ترويسة","ترويسة","ترويسة",null,null,null,null,null,null,null,null,null,null,null,null,null,null,null,null,null,null,null,null,null,null,null,null,null,null,null,"ترويسة","ترويسة","ترويسة"]
[null,"كشف "]
["بيان1","بيان2","بيان3","بيان4","بيان5","بيان6","بيان7","بيان8","بيان9","بيان10","بيان11","بيان12","بيان13","بيان14","بيان15","بيان16","بيان17","بيان18","بيان19","بيان20","بيان21","بيان22","بيان23","بيان24","بيان25","بيان26","بيان27","بيان28","بيان29","بيان30","بيان31","بيان32","بيان33"]
[]
[1,"بيان1","بيان1","بيان1","بيان1","محمد محمد ابراهيم محمد سليمان",100,"بيان1","بيان1","اوفسينا","بيان1","بيان1","بيان1","بيان1","بيان1","بيان1","بيان1","بيان1","بيان1","بيان1","بيان1","بيان1","بيان1","بيان1","بيان1","بيان1","بيان1","بيان1","بيان1","بيان1","بيان1","بيان1","بيان1"]
[2,"بيان2","بيان2","بيان2","بيان2","امينه محمد احمد سعيد",100,"بيان2","بيان2",null,"بيان2","بيان2","بيان2","بيان2","بيان2","بيان2","بيان2","بيان2","بيان2","بيان2","بيان2","بيان2","بيان2","بيان2","بيان2","بيان2","بيان2","بيان2","بيان2","بيان2","بيان2","بيان2","بيان2"]
[3,"بيان3","بيان3","بيان3","بيان3","سميه السيد رضوان الواعى",100,"بيان3","بيان3","اوفسينا","بيان3","بيان3","بيان3","بيان3","بيان3","بيان3","بيان3","بيان3","بيان3","بيان3","بيان3","بيان3","بيان3","بيان3","بيان3","بيان3","بيان3","بيان3","بيان3","بيان3","بيان3","بيان3","بيان3"]
[4,"بيان4","بيان4","بيان4","بيان4","الامام احمد الامام يوسف عطا الله",100,"بيان4","بيان4",null,"بيان4","بيان4","بيان4","بيان4","بيان4","بيان4","بيان4","بيان4","بيان4","بيان4","بيان4","بيان4","بيان4","بيان4","بيان4","بيان4","بيان4","بيان4","بيان4","بيان4","بيان4","بيان4","بيان4"]
[5,"بيان5","بيان5","بيان5","بيان5","عزيزه ابراهيم عبد المطلب النجار",100,"بيان5","بيان5","اوفسينا","بيان5","بيان5","بيان5","بيان5","بيان5","بيان5","بيان5","بيان5","بيان5","بيان5","بيان5","بيان5","بيان5","بيان5","بيان5","بيان5","بيان5","بيان5","بيان5","بيان5","بيان5","بيان5","بيان5"]
[6,"بيان6","بيان6","بيان6","بيان6","سوسن محمدين احمد زياده",100,"بيان6","بيان6",null,"بيان6","بيان6","بيان6","بيان6","بيان6","بيان6","بيان6","بيان6","بيان6","بيان6","بيان6","بيان6","بيان6","بيان6","بيان6","بيان6","بيان6","بيان6","بيان6","بيان6","بيان6","بيان6","بيان6"]
[7,"بيان7","بيان7","بيان7","بيان7","عايده سليمان محمد سليمان",100,"بيان7","بيان7","اوفسينا","بيان7","بيان7","بيان7","بيان7","بيان7","بيان7","بيان7","بيان7","بيان7","بيان7","بيان7","بيان7","بيان7","بيان7","بيان7","بيان7","بيان7","بيان7","بيان7","بيان7","بيان7","بيان7","بيان7"]
[8,"بيان8","بيان8","بيان8","بيان8","لبيبه محمد محمد اسماعيل",100,"بيان8","بيان8",null,"بيان8","بيان8","بيان8","بيان8","بيان8","بيان8","بيان8","بيان8","بيان8","بيان8","بيان8","بيان8","بيان8","بيان8","بيان8","بيان8","بيان8","بيان8","بيان8","بيان8","بيان8","بيان8","بيان8"]
[9,"بيان9","بيان9","بيان9","بيان9","احمد محمدين احمد زياده",100,"بيان9","بيان9","اوفسينا","بيان9","بيان9","بيان9","بيان9","بيان9","بيان9","بيان9","بيان9","بيان9","بيان9","بيان9","بيان9","بيان9","بيان9","بيان9","بيان9","بيان9","بيان9","بيان9","بيان9","بيان9","بيان9","بيان9"]
[10,"بيان10","بيان10","بيان10","بيان10","صفيه احمد محمد سليمان جندى",100,"بيان10","بيان10",null,"بيان10","بيان10","بيان10","بيان10","بيان10","بيان10","بيان10","بيان10","بيان10","بيان10","بيان10","بيان10","بيان10","بيان10","بيان10","بيان10","بيان10","بيان10","بيان10","بيان10","بيان10","بيان10","بيان10"]
[11,"بيان11","بيان11","بيان11","بيان11","اسمه احمد محمد جندى",100,"بيان11","بيان11","اوفسينا","بيان11","بيان11","بيان11","بيان11","بيان11","بيان11","بيان11","بيان11","بيان11","بيان11","بيان11","بيان11","بيان11","بيان11","بيان11","بيان11","بيان11","بيان11","بيان11","بيان11","بيان11","بيان11","بيان11"]
[12,"بيان12","بيان12","بيان12","بيان12","سحر فؤاد انور احمد ريه",100,"بيان12","بيان12",null,"بيان12","بيان12","بيان12","بيان12","بيان12","بيان12","بيان12","بيان12","بيان12","بيان12","بيان12","بيان12","بيان12","بيان12","بيان12","بيان12","بيان12","بيان12","بيان12","بيان12","بيان12","بيان12","بيان12"]
[13,"بيان13","بيان13","بيان13","بيان13","عماد فاضل محمد محيى",100,"بيان13","بيان13","اوفسينا","بيان13","بيان13","بيان13","بيان13","بيان13","بيان13","بيان13","بيان13","بيان13","بيان13","بيان13","بيان13","بيان13","بيان13","بيان13","بيان13","بيان13","بيان13","بيان13","بيان13","بيان13","بيان13","بيان13"]
[14,"بيان14","بيان14","بيان14","بيان14","ناديه عبدالحليم نصر محمد مصصطفى",100,"بيان14","بيان14",null,"بيان14","بيان14","بيان14","بيان14","بيان14","بيان14","بيان14","بيان14","بيان14","بيان14","بيان14","بيان14","بيان14","بيان14","بيان14","بيان14","بيان14","بيان14","بيان14","بيان14","بيان14","بيان14","بيان14"]
[15,"بيان15","بيان15","بيان15","بيان15","شاديه مصطفى مصطفى المنشاوى",100,"بيان15","بيان15","اوفسينا","بيان15","بيان15","بيان15","بيان15","بيان15","بيان15","بيان15","بيان15","بيان15","بيان15","بيان15","بيان15","بيان15","بيان15","بيان15","بيان15","بيان15","بيان15","بيان15","بيان15","بيان15","بيان15","بيان15"]
[16,"بيان16","بيان16","بيان16","بيان16","هناء فؤاد انوراحمد ريا",100,"بيان16","بيان16",null,"بيان16","بيان16","بيان16","بيان16","بيان16","بيان16","بيان16","بيان16","بيان16","بيان16","بيان16","بيان16","بيان16","بيان16","بيان16","بيان16","بيان16","بيان16","بيان16","بيان16","بيان16","بيان16","بيان16"]
[17,"بيان17","بيان17","بيان17","بيان17","مرفت عبدالعليم عبد الحليم طلبه",100,"بيان17","بيان17","اوفسينا","بيان17","بيان17","بيان17","بيان17","بيان17","بيان17","بيان17","بيان17","بيان17","بيان17","بيان17","بيان17","بيان17","بيان17","بيان17","بيان17","بيان17","بيان17","بيان17","بيان17","بيان17","بيان17","بيان17"]
[18,"بيان18","بيان18","بيان18","بيان18","صفاء حماد حسن احمد الشيخ",100,"بيان18","بيان18",null,"بيان18","بيان18","بيان18","بيان18","بيان18","بيان18","بيان18","بيان18","بيان18","بيان18","بيان18","بيان18","بيان18","بيان18","بيان18","بيان18","بيان18","بيان18","بيان18","بيان18","بيان18","بيان18","بيان18"]
[19,"بيان19","بيان19","بيان19","بيان19","خيريه فريد ابراهيم الجندى",100,"بيان19","بيان19","اوفسينا","بيان19","بيان19","بيان19","بيان19","بيان19","بيان19","بيان19","بيان19","بيان19","بيان19","بيان19","بيان19","بيان19","بيان19","بيان19","بيان19","بيان19","بيان19","بيان19","بيان19","بيان19","بيان19","بيان19"]
[20,"بيان20","بيان20","بيان20","بيان20","ايناس عبدالرحمن عبد المجيد عبدالله سالم",100,"بيان20","بيان20",null,"بيان20","بيان20","بيان20","بيان20","بيان20","بيان20","بيان20","بيان20","بيان20","بيان20","بيان20","بيان20","بيان20","بيان20","بيان20","بيان20","بيان20","بيان20","بيان20","بيان20","بيان20","بيان20","بيان20"]
["جملة كشف1",null,null,null,null,null,{"$f":"SUM(G8:G27)","v":2000},100,100,null,100,100,100,100,100,100,100,100,100,100,100,100,100,100,100,100,100,100,100,100,100,100,100]
["توقيعات","توقيعات","توقيعات","توقيعات","توقيعات","توقيعات","توقيعات","توقيعات","توقيعات",null,"توقيعات","توقيعات","توقيعات","توقيعات","توقيعات","توقيعات","توقيعات","توقيعات","توقيعات","توقيعات","توقيعات","توقيعات","توقيعات","توقيعات","توقيعات","توقيعات","توقيعات","توقيعات","توقيعات","توقيعات","توقيعات","توقيعات","توقيعات"]
["توقيعات","توقيعات","توقيعات","توقيعات","توقيعات","توقيعات","توقيعات","توقيعات","توقيعات",null,"توقيعات","توقيعات","توقيعات","توقيعات","توقيعات","توقيعات","توقيعات","توقيعات","توقيعات","توقيعات","توقيعات","توقيعات","توقيعات","توقيعات","توقيعات","توقيعات","توقيعات","توقيعات","توقيعات","توقيعات","توقيعات","توقيعات","توقيعات"]
["توقيعات","توقيعات","توقيعات","توقيعات","توقيعات","توقيعات","توقيعات","توقيعات","توقيعات",null,"توقيعات","توقيعات","توقيعات","توقيعات","توقيعات","توقيعات","توقيعات","توقيعات","توقيعات","توقيعات","توقيعات","توقيعات","توقيعات","توقيعات","توقيعات","توقيعات","توقيعات","توقيعات","توقيعات","توقيعات","توقيعات","توقيعات","توقيعات"]
["توقيعات","توقيعات","توقيعات","توقيعات","توقيعات","توقيعات","توقيعات","توقيعات","توقيعات",null,"توقيعات","توقيعات","توقيعات","توقيعات","توقيعات","توقيعات","توقيعات","توقيعات","توقيعات","توقيعات","توقيعات","توقيعات","توقيعات","توقيعات","توقيعات","توقيعات","توقيعات","توقيعات","توقيعات","توقيعات","توقيعات","توقيعات","توقيعات"]
["توقيعات","توقيعات","توقيعات","توقيعات","توقيعات","توقيعات","توقيعات","توقيعات","توقيعات",null,"توقيعات","توقيعات","توقيعات","توقيعات","توقيعات","توقيعات","توقيعات","توقيعات","توقيعات","توقيعات","توقيعات","توقيعات","توقيعات","توقيعات","توقيعات","توقيعات","توقيعات","توقيعات","توقيعات","توقيعات","توقيعات","توقيعات","توقيعات"]
["ماقبله جملة كشف1",null,null,null,null,null,{"$f":"G28","v":2000},100,100,null,100,100,100,100,100,100,100,100,100,100,100,100,100,100,100,100,100,100,100,100,100,100,100]
[21,"بيان21","بيان21","بيان21","بيان21","احمد اسماعيل اسماعيل هزاع",50,"بيان21","بيان21","اوفسينا","بيان21","بيان21","بيان1","بيان21","بيان21","بيان1","بيان1","بيان1","بيان1","بيان1","بيان1","بيان1","بيان1","بيان1","بيان1","بيان1","بيان1","بيان1","بيان1","بيان1","بيان1","بيان1","بيان1"]
[22,"بيان22","بيان22","بيان22","بيان22","مها رجب ذكى عبد السيد",50,"بيان22","بيان22",null,"بيان22","بيان22","بيان2","بيان22","بيان22","بيان2","بيان2","بيان2","بيان2","بيان2","بيان2","بيان2","بيان2","بيان2","بيان2","بيان2","بيان2","بيان2","بيان2","بيان2","بيان2","بيان2","بيان2"]
[23,"بيان23","بيان23","بيان23","بيان23","ايمان صلاح رزق يوسف",50,"بيان23","بيان23","اوفسينا","بيان23","بيان23","بيان3","بيان23","بيان23","بيان3","بيان3","بيان3","بيان3","بيان3","بيان3","بيان3","بيان3","بيان3","بيان3","بيان3","بيان3","بيان3","بيان3","بيان3","بيان3","بيان3","بيان3"]
[24,"بيان24","بيان24","بيان24","بيان24","صفيناز ابوبكر محمد نصر سليمان",50,"بيان24","بيان24",null,"بيان24","بيان24","بيان4","بيان24","بيان24","بيان4","بيان4","بيان4","بيان4","بيان4","بيان4","بيان4","بيان4","بيان4","بيان4","بيان4","بيان4","بيان4","بيان4","بيان4","بيان4","بيان4","بيان4"]
[25,"بيان25","بيان25","بيان25","بيان25","اسماء ايمن يوسف يوسف عزالدين",50,"بيان25","بيان25","اوفسينا","بيان25","بيان25","بيان5","بيان25","بيان25","بيان5","بيان5","بيان5","بيان5","بيان5","بيان5","بيان5","بيان5","بيان5","بيان5","بيان5","بيان5","بيان5","بيان5","بيان5","بيان5","بيان5","بيان5"]
[26,"بيان26","بيان26","بيان26","بيان26","مروة عوض محمد ابراهيم عطايا",50,"بيان26","بيان26",null,"بيان26","بيان26","بيان6","بيان26","بيان26","بيان6","بيان6","بيان6","بيان6","بيان6","بيان6","بيان6","بيان6","بيان6","بيان6","بيان6","بيان6","بيان6","بيان6","بيان6","بيان6","بيان6","بيان6"]
[27,"بيان27","بيان27","بيان27","بيان27","ايمان عبدالعليم جبر احمد شريف",50,"بيان27","بيان27","اوفسينا","بيان27","بيان27","بيان7","بيان27","بيان27","بيان7","بيان7","بيان7","بيان7","بيان7","بيان7","بيان7","بيان7","بيان7","بيان7","بيان7","بيان7","بيان7","بيان7","بيان7","بيان7","بيان7","بيان7"]
[28,"بيان28","بيان28","بيان28","بيان28","عبدالحليم عمر السعيد عجينة",50,"بيان28","بيان28",null,"بيان28","بيان28","بيان8","بيان28","بيان28","بيان8","بيان8","بيان8","بيان8","بيان8","بيان8","بيان8","بيان8","بيان8","بيان8","بيان8","بيان8","بيان8","بيان8","بيان8","بيان8","بيان8","بيان8"]
[29,"بيان29","بيان29","بيان29","بيان29","محمود على على بركات",50,"بيان29","بيان29","اوفسينا","بيان29","بيان29","بيان9","بيان29","بيان29","بيان9","بيان9","بيان9","بيان9","بيان9","بيان9","بيان9","بيان9","بيان9","بيان9","بيان9","بيان9","بيان9","بيان9","بيان9","بيان9","بيان9","بيان9"]
[30,"بيان30","بيان30","بيان30","بيان30","رضا محمد احمد المقدم",50,"بيان30","بيان30",null,"بيان30","بيان30","بيان10","بيان30","بيان30","بيان10","بيان10","بيان10","بيان10","بيان10","بيان10","بيان10","بيان10","بيان10","بيان10","بيان10","بيان10","بيان10","بيان10","بيان10","بيان10","بيان10","بيان10"]
[31,"بيان31","بيان31","بيان31","بيان31","حسونه سالم نصر سالم",50,"بيان31","بيان31","اوفسينا","بيان31","بيان31","بيان11","بيان31","بيان31","بيان11","بيان11","بيان11","بيان11","بيان11","بيان11","بيان11","بيان11","بيان11","بيان11","بيان11","بيان11","بيان11","بيان11","بيان11","بيان11","بيان11","بيان11"]
[32,"بيان32","بيان32","بيان32","بيان32","حسين سليم حسين عبيد",50,"بيان32","بيان32",null,"بيان32","بيان32","بيان12","بيان32","بيان32","بيان12","بيان12","بيان12","بيان12","بيان12","بيان12","بيان12","بيان12","بيان12","بيان12","بيان12","بيان12","بيان12","بيان12","بيان12","بيان12","بيان12","بيان12"]
[33,"بيان33","بيان33","بيان33","بيان33","عفت محمد مصطفى عجينه",50,"بيان33","بيان33","اوفسينا","بيان33","بيان33","بيان13","بيان33","بيان33","بيان13","بيان13","بيان13","بيان13","بيان13","بيان13","بيان13","بيان13","بيان13","بيان13","بيان13","بيان13","بيان13","بيان13","بيان13","بيان13","بيان13","بيان13"]
[34,"بيان34","بيان34","بيان34","بيان34","عزه عبد الرحمن محمد زياده",50,"بيان34","بيان34",null,"بيان34","بيان34","بيان14","بيان34","بيان34","بيان14","بيان14","بيان14","بيان14","بيان14","بيان14","بيان14","بيان14","بيان14","بيان14","بيان14","بيان14","بيان14","بيان14","بيان14","بيان14","بيان14","بيان14"]
[35,"بيان35","بيان35","بيان35","بيان35","رمزى عبد العزيز محمد عوض",50,"بيان35","بيان35","اوفسينا","بيان35","بيان35","بيان15","بيان35","بيان35","بيان15","بيان15","بيان15","بيان15","بيان15","بيان15","بيان15","بيان15","بيان15","بيان15","بيان15","بيان15","بيان15","بيان15","بيان15","بيان15","بيان15","بيان15"]
[36,"بيان36","بيان36","بيان36","بيان36","امال ابراهيم السعيد حسان",50,"بيان36","بيان36",null,"بيان36","بيان36","بيان16","بيان36","بيان36","بيان16","بيان16","بيان16","بيان16","بيان16","بيان16","بيان16","بيان16","بيان16","بيان16","بيان16","بيان16","بيان16","بيان16","بيان16","بيان16","بيان16","بيان16"]
[37,"بيان37","بيان37","بيان37","بيان37","محمود عبد البديع ابراهيم رمضان",50,"بيان37","بيان37","اوفسينا","بيان37","بيان37","بيان17","بيان37","بيان37","بيان17","بيان17","بيان17","بيان17","بيان17","بيان17","بيان17","بيان17","بيان17","بيان17","بيان17","بيان17","بيان17","بيان17","بيان17","بيان17","بيان17","بيان17"]
[38,"بيان38","بيان38","بيان38","بيان38","هدى عطية محمد نصر رضوان",50,"بيان38","بيان38",null,"بيان38","بيان38","بيان18","بيان38","بيان38","بيان18","بيان18","بيان18","بيان18","بيان18","بيان18","بيان18","بيان18","بيان18","بيان18","بيان18","بيان18","بيان18","بيان18","بيان18","بيان18","بيان18","بيان18"]
[39,"بيان39","بيان39","بيان39","بيان39","صالح محمد صبحى عبد الرازق",50,"بيان39","بيان39","اوفسينا","بيان39","بيان39","بيان19","بيان39","بيان39","بيان19","بيان19","بيان19","بيان19","بيان19","بيان19","بيان19","بيان19","بيان19","بيان19","بيان19","بيان19","بيان19","بيان19","بيان19","بيان19","بيان19","بيان19"]
[40,"بيان40","بيان40","بيان40","بيان40","السيد السيد احمد يوسف",50,"بيان40","بيان40",null,"بيان40","بيان40","بيان20","بيان40","بيان40","بيان20","بيان20","بيان20","بيان20","بيان20","بيان20","بيان20","بيان20","بيان20","بيان20","بيان20","بيان20","بيان20","بيان20","بيان20","بيان20","بيان20","بيان20"]
["جملة كشف2",null,null,null,null,null,{"$f":"SUM(G34:G54)","v":3000},{"$f":"SUM(H34:H54)","v":100},100,null,100,100,100,100,100,100,100,100,100,100,100,100,100,100,100,100,100,100,100,100,100,100,100]
["توقيعات","توقيعات","توقيعات","توقيعات","توقيعات","توقيعات","توقيعات","توقيعات","توقيعات",null,"توقيعات","توقيعات","توقيعات","توقيعات","توقيعات","توقيعات","توقيعات","توقيعات","توقيعات","توقيعات","توقيعات","توقيعات","توقيعات","توقيعات","توقيعات","توقيعات","توقيعات","توقيعات","توقيعات","توقيعات","توقيعات","توقيعات","توقيعات"]
["توقيعات","توقيعات","توقيعات","توقيعات","توقيعات","توقيعات","توقيعات","توقيعات","توقيعات",null,"توقيعات","توقيعات","توقيعات","توقيعات","توقيعات","توقيعات","توقيعات","توقيعات","توقيعات","توقيعات","توقيعات","توقيعات","توقيعات","توقيعات","توقيعات","توقيعات","توقيعات","توقيعات","توقيعات","توقيعات","توقيعات","توقيعات","توقيعات"]
["توقيعات","توقيعات","توقيعات","توقيعات","توقيعات","توقيعات","توقيعات","توقيعات","توقيعات",null,"توقيعات","توقيعات","توقيعات","توقيعات","توقيعات","توقيعات","توقيعات","توقيعات","توقيعات","توقيعات","توقيعات","توقيعات","توقيعات","توقيعات","توقيعات","توقيعات","توقيعات","توقيعات","توقيعات","توقيعات","توقيعات","توقيعات","توقيعات"]
["توقيعات","توقيعات","توقيعات","توقيعات","توقيعات","توقيعات","توقيعات","توقيعات","توقيعات",null,"توقيعات","توقيعات","توقيعات","توقيعات","توقيعات","توقيعات","توقيعات","توقيعات","توقيعات","توقيعات","توقيعات","توقيعات","توقيعات","توقيعات","توقيعات","توقيعات","توقيعات","توقيعات","توقيعات","توقيعات","توقيعات","توقيعات","توقيعات"]
["توقيعات","توقيعات","توقيعات","توقيعات","توقيعات","توقيعات","توقيعات","توقيعات","توقيعات",null,"توقيعات","توقيعات","توقيعات","توقيعات","توقيعات","توقيعات","توقيعات","توقيعات","توقيعات","توقيعات","توقيعات","توقيعات","توقيعات","توقيعات","توقيعات","توقيعات","توقيعات","توقيعات","توقيعات","توقيعات","توقيعات","توقيعات","توقيعات"]
["ماقبله جملة كشف2",null,null,null,null,null,{"$f":"G55","v":3000},100,100,null,100,100,100,100,100,100,100,100,100,100,100,100,100,100,100,100,100,100,100,100,100,100,100]
[21,"بيان21","بيان21","بيان21","بيان21","موظف1",50,"بيان21","بيان21","اوفسينا","بيان21","بيان21","بيان1","بيان21","بيان21","بيان1","بيان1","بيان1","بيان1","بيان1","بيان1","بيان1","بيان1","بيان1","بيان1","بيان1","بيان1","بيان1","بيان1","بيان1","بيان1","بيان1","بيان1"]
[22,"بيان22","بيان22","بيان22","بيان22","موظف2",50,"بيان22","بيان22",null,"بيان22","بيان22","بيان2","بيان22","بيان22","بيان2","بيان2","بيان2","بيان2","بيان2","بيان2","بيان2","بيان2","بيان2","بيان2","بيان2","بيان2","بيان2","بيان2","بيان2","بيان2","بيان2","بيان2"]
[23,"بيان23","بيان23","بيان23","بيان23","موظف3",50,"بيان23","بيان23","اوفسينا","بيان23","بيان23","بيان3","بيان23","بيان23","بيان3","بيان3","بيان3","بيان3","بيان3","بيان3","بيان3","بيان3","بيان3","بيان3","بيان3","بيان3","بيان3","بيان3","بيان3","بيان3","بيان3","بيان3"]
[24,"بيان24","بيان24","بيان24","بيان24","موظف4",50,"بيان24","بيان24",null,"بيان24","بيان24","بيان4","بيان24","بيان24","بيان4","بيان4","بيان4","بيان4","بيان4","بيان4","بيان4","بيان4","بيان4","بيان4","بيان4","بيان4","بيان4","بيان4","بيان4","بيان4","بيان4","بيان4"]
[25,"بيان25","بيان25","بيان25","بيان25","موظف5",50,"بيان25","بيان25","اوفسينا","بيان25","بيان25","بيان5","بيان25","بيان25","بيان5","بيان5","بيان5","بيان5","بيان5","بيان5","بيان5","بيان5","بيان5","بيان5","بيان5","بيان5","بيان5","بيان5","بيان5","بيان5","بيان5","بيان5"]
[26,"بيان26","بيان26","بيان26","بيان26","موظف6",50,"بيان26","بيان26",null,"بيان26","بيان26","بيان6","بيان26","بيان26","بيان6","بيان6","بيان6","بيان6","بيان6","بيان6","بيان6","بيان6","بيان6","بيان6","بيان6","بيان6","بيان6","بيان6","بيان6","بيان6","بيان6","بيان6"]
[27,"بيان27","بيان27","بيان27","بيان27","موظف7",50,"بيان27","بيان27","اوفسينا","بيان27","بيان27","بيان7","بيان27","بيان27","بيان7","بيان7","بيان7","بيان7","بيان7","بيان7","بيان7","بيان7","بيان7","بيان7","بيان7","بيان7","بيان7","بيان7","بيان7","بيان7","بيان7","بيان7"]
[28,"بيان28","بيان28","بيان28","بيان28","موظف8",50,"بيان28","بيان28",null,"بيان28","بيان28","بيان8","بيان28","بيان28","بيان8","بيان8","بيان8","بيان8","بيان8","بيان8","بيان8","بيان8","بيان8","بيان8","بيان8","بيان8","بيان8","بيان8","بيان8","بيان8","بيان8","بيان8"]
[29,"بيان29","بيان29","بيان29","بيان29","موظف9",50,"بيان29","بيان29","اوفسينا","بيان29","بيان29","بيان9","بيان29","بيان29","بيان9","بيان9","بيان9","بيان9","بيان9","بيان9","بيان9","بيان9","بيان9","بيان9","بيان9","بيان9","بيان9","بيان9","بيان9","بيان9","بيان9","بيان9"]
[30,"بيان30","بيان30","بيان30","بيان30","موظف10",50,"بيان30","بيان30",null,"بيان30","بيان30","بيان10","بيان30","بيان30","بيان10","بيان10","بيان10","بيان10","بيان10","بيان10","بيان10","بيان10","بيان10","بيان10","بيان10","بيان10","بيان10","بيان10","بيان10","بيان10","بيان10","بيان10"]
[31,"بيان31","بيان31","بيان31","بيان31","موظف11",50,"بيان31","بيان31","اوفسينا","بيان31","بيان31","بيان11","بيان31","بيان31","بيان11","بيان11","بيان11","بيان11","بيان11","بيان11","بيان11","بيان11","بيان11","بيان11","بيان11","بيان11","بيان11","بيان11","بيان11","بيان11","بيان11","بيان11"]
[32,"بيان32","بيان32","بيان32","بيان32","موظف12",50,"بيان32","بيان32",null,"بيان32","بيان32","بيان12","بيان32","بيان32","بيان12","بيان12","بيان12","بيان12","بيان12","بيان12","بيان12","بيان12","بيان12","بيان12","بيان12","بيان12","بيان12","بيان12","بيان12","بيان12","بيان12","بيان12"]
[33,"بيان33","بيان33","بيان33","بيان33","موظف13",50,"بيان33","بيان33","اوفسينا","بيان33","بيان33","بيان13","بيان33","بيان33","بيان13","بيان13","بيان13","بيان13","بيان13","بيان13","بيان13","بيان13","بيان13","بيان13","بيان13","بيان13","بيان13","بيان13","بيان13","بيان13","بيان13","بيان13"]
[34,"بيان34","بيان34","بيان34","بيان34","موظف14",50,"بيان34","بيان34",null,"بيان34","بيان34","بيان14","بيان34","بيان34","بيان14","بيان14","بيان14","بيان14","بيان14","بيان14","بيان14","بيان14","بيان14","بيان14","بيان14","بيان14","بيان14","بيان14","بيان14","بيان14","بيان14","بيان14"]
[35,"بيان35","بيان35","بيان35","بيان35","موظف15",50,"بيان35","بيان35","اوفسينا","بيان35","بيان35","بيان15","بيان35","بيان35","بيان15","بيان15","بيان15","بيان15","بيان15","بيان15","بيان15","بيان15","بيان15","بيان15","بيان15","بيان15","بيان15","بيان15","بيان15","بيان15","بيان15","بيان15"]
[36,"بيان36","بيان36","بيان36","بيان36","موظف16",50,"بيان36","بيان36",null,"بيان36","بيان36","بيان16","بيان36","بيان36","بيان16","بيان16","بيان16","بيان16","بيان16","بيان16","بيان16","بيان16","بيان16","بيان16","بيان16","بيان16","بيان16","بيان16","بيان16","بيان16","بيان16","بيان16"]
[37,"بيان37","بيان37","بيان37","بيان37","موظف17",50,"بيان37","بيان37","اوفسينا","بيان37","بيان37","بيان17","بيان37","بيان37","بيان17","بيان17","بيان17","بيان17","بيان17","بيان17","بيان17","بيان17","بيان17","بيان17","بيان17","بيان17","بيان17","بيان17","بيان17","بيان17","بيان17","بيان17"]
[38,"بيان38","بيان38","بيان38","بيان38","موظف18",50,"بيان38","بيان38",null,"بيان38","بيان38","بيان18","بيان38","بيان38","بيان18","بيان18","بيان18","بيان18","بيان18","بيان18","بيان18","بيان18","بيان18","بيان18","بيان18","بيان18","بيان18","بيان18","بيان18","بيان18","بيان18","بيان18"]
[39,"بيان39","بيان39","بيان39","بيان39","موظف19",50,"بيان39","بيان39","اوفسينا","بيان39","بيان39","بيان19","بيان39","بيان39","بيان19","بيان19","بيان19","بيان19","بيان19","بيان19","بيان19","بيان19","بيان19","بيان19","بيان19","بيان19","بيان19","بيان19","بيان19","بيان19","بيان19","بيان19"]
[40,"بيان40","بيان40","بيان40","بيان40","موظف20",50,"بيان40","بيان40",null,"بيان40","بيان40","بيان20","بيان40","بيان40","بيان20","بيان20","بيان20","بيان20","بيان20","بيان20","بيان20","بيان20","بيان20","بيان20","بيان20","بيان20","بيان20","بيان20","بيان20","بيان20","بيان20","بيان20"]
["جملة كشف3",null,null,null,null,null,{"$f":"SUM(G61:G81)","v":4000},{"$f":"SUM(H61:H81)","v":100},100,null,100,100,100,100,100,100,100,100,100,100,100,100,100,100,100,100,100,100,100,100,100,100,100]
["توقيعات","توقيعات","توقيعات","توقيعات","توقيعات","توقيعات","توقيعات","توقيعات","توقيعات",null,"توقيعات","توقيعات","توقيعات","توقيعات","توقيعات","توقيعات","توقيعات","توقيعات","توقيعات","توقيعات","توقيعات","توقيعات","توقيعات","توقيعات","توقيعات","توقيعات","توقيعات","توقيعات","توقيعات","توقيعات","توقيعات","توقيعات","توقيعات"]
["توقيعات","توقيعات","توقيعات","توقيعات","توقيعات","توقيعات","توقيعات","توقيعات","توقيعات",null,"توقيعات","توقيعات","توقيعات","توقيعات","توقيعات","توقيعات","توقيعات","توقيعات","توقيعات","توقيعات","توقيعات","توقيعات","توقيعات","توقيعات","توقيعات","توقيعات","توقيعات","توقيعات","توقيعات","توقيعات","توقيعات","توقيعات","توقيعات"]
["توقيعات","توقيعات","توقيعات","توقيعات","توقيعات","توقيعات","توقيعات","توقيعات","توقيعات",null,"توقيعات","توقيعات","توقيعات","توقيعات","توقيعات","توقيعات","توقيعات","توقيعات","توقيعات","توقيعات","توقيعات","توقيعات","توقيعات","توقيعات","توقيعات","توقيعات","توقيعات","توقيعات","توقيعات","توقيعات","توقيعات","توقيعات","توقيعات"]
["توقيعات","توقيعات","توقيعات","توقيعات","توقيعات","توقيعات","توقيعات","توقيعات","توقيعات",null,"توقيعات","توقيعات","توقيعات","توقيعات","توقيعات","توقيعات","توقيعات","توقيعات","توقيعات","توقيعات","توقيعات","توقيعات","توقيعات","توقيعات","توقيعات","توقيعات","توقيعات","توقيعات","توقيعات","توقيعات","توقيعات","توقيعات","توقيعات"]
["توقيعات","توقيعات","توقيعات","توقيعات","توقيعات","توقيعات","توقيعات","توقيعات","توقيعات",null,"توقيعات","توقيعات","توقيعات","توقيعات","توقيعات","توقيعات","توقيعات","توقيعات","توقيعات","توقيعات","توقيعات","توقيعات","توقيعات","توقيعات","توقيعات","توقيعات","توقيعات","توقيعات","توقيعات","توقيعات","توقيعات","توقيعات","توقيعات"]

{"sheet":"النتائج","index":1,"n_rows":43,"n_cols":7,"rows_kept":43,"cut":false,"hidden":false,"merged":[[5,6,6,6],[5,4,6,4],[5,5,6,5],[5,3,6,3],[5,0,6,0],[5,1,6,1],[5,2,6,2]]}
["ترويسة","ترويسة"]
["ترويسة","ترويسة"]
["ترويسة","ترويسة"]
["ترويسة","ترويسة"]
[null,"كشف "]
["بيان1","بيان2","بيان6","بيان10","بيان13","بيان17","بيان23"]
[]
[1,"بيان1","محمد محمد ابراهيم محمد سليمان","اوفسينا","بيان1","بيان1","بيان1"]
[2,"بيان2","امينه محمد احمد سعيد","اوفسينا","بيان2","بيان2","بيان2"]
[7,"بيان7","عايده سليمان محمد سليمان","اوفسينا","بيان7","بيان7","بيان7"]
[8,"بيان8","لبيبه محمد محمد اسماعيل","اوفسينا","بيان8","بيان8","بيان8"]
[10,"بيان10","صفيه احمد محمد سليمان جندى","اوفسينا","بيان10","بيان10","بيان10"]
[11,"بيان11","اسمه احمد محمد جندى","اوفسينا","بيان11","بيان11","بيان11"]
[12,"بيان12","سحر فؤاد انور احمد ريه","اوفسينا","بيان12","بيان12","بيان12"]
[14,"بيان14","ناديه عبدالحليم نصر محمد مصصطفى","اوفسينا","بيان14","بيان14","بيان14"]
[15,"بيان15","شاديه مصطفى مصطفى المنشاوى","اوفسينا","بيان15","بيان15","بيان15"]
[16,"بيان16","هناء فؤاد انوراحمد ريا","اوفسينا","بيان16","بيان16","بيان16"]
[18,"بيان18","صفاء حماد حسن احمد الشيخ","اوفسينا","بيان18","بيان18","بيان18"]
[19,"بيان19","خيريه فريد ابراهيم الجندى","اوفسينا","بيان19","بيان19","بيان19"]
[21,"بيان21","احمد اسماعيل اسماعيل هزاع","اوفسينا","بيان1","بيان1","بيان1"]
[22,"بيان22","مها رجب ذكى عبد السيد","اوفسينا","بيان2","بيان2","بيان2"]
[27,"بيان27","ايمان عبدالعليم جبر احمد شريف","اوفسينا","بيان7","بيان7","بيان7"]
[28,"بيان28","عبدالحليم عمر السعيد عجينة","اوفسينا","بيان8","بيان8","بيان8"]
[30,"بيان30","رضا محمد احمد المقدم","اوفسينا","بيان10","بيان10","بيان10"]
[31,"بيان31","حسونه سالم نصر سالم","اوفسينا","بيان11","بيان11","بيان11"]
[32,"بيان32","حسين سليم حسين عبيد","اوفسينا","بيان12","بيان12","بيان12"]
[34,"بيان34","عزه عبد الرحمن محمد زياده","اوفسينا","بيان14","بيان14","بيان14"]
[35,"بيان35","رمزى عبد العزيز محمد عوض","اوفسينا","بيان15","بيان15","بيان15"]
[36,"بيان36","امال ابراهيم السعيد حسان","اوفسينا","بيان16","بيان16","بيان16"]
[38,"بيان38","هدى عطية محمد نصر رضوان","اوفسينا","بيان18","بيان18","بيان18"]
[39,"بيان39","صالح محمد صبحى عبد الرازق","اوفسينا","بيان19","بيان19","بيان19"]
[21,"بيان21","احمد اسماعيل اسماعيل هزاع","اوفسينا","بيان1","بيان1","بيان1"]
[22,"بيان22","مها رجب ذكى عبد السيد","اوفسينا","بيان2","بيان2","بيان2"]
[27,"بيان27","ايمان عبدالعليم جبر احمد شريف","اوفسينا","بيان7","بيان7","بيان7"]
[28,"بيان28","عبدالحليم عمر السعيد عجينة","اوفسينا","بيان8","بيان8","بيان8"]
[30,"بيان30","رضا محمد احمد المقدم","اوفسينا","بيان10","بيان10","بيان10"]
[31,"بيان31","حسونه سالم نصر سالم","اوفسينا","بيان11","بيان11","بيان11"]
[32,"بيان32","حسين سليم حسين عبيد","اوفسينا","بيان12","بيان12","بيان12"]
[34,"بيان34","عزه عبد الرحمن محمد زياده","اوفسينا","بيان14","بيان14","بيان14"]
[35,"بيان35","رمزى عبد العزيز محمد عوض","اوفسينا","بيان15","بيان15","بيان15"]
[36,"بيان36","امال ابراهيم السعيد حسان","اوفسينا","بيان16","بيان16","بيان16"]
[38,"بيان38","هدى عطية محمد نصر رضوان","اوفسينا","بيان18","بيان18","بيان18"]
[39,"بيان39","صالح محمد صبحى عبد الرازق","اوفسينا","بيان19","بيان19","بيان19"]